{"text_format":"3","workbook":"xlsx","n_sheets":4,"sheets":["B1 Proposed Team  ","B2 Past Experience","B3 Deliverables ","B4 Pricing  "],"read":"whole","date_system":"1900"}

{"sheet":"B1 Proposed Team  ","index":0,"n_rows":22,"n_cols":6,"rows_kept":22,"merged":[[0,0,0,5],[1,0,1,5],[21,1,24,1]]}
["Annexure B1: Proposed Team"]
["Bidder Name:                                                                                                                                        Bid Ref:  DPME 03/2023-24"]
["#","Name of team member","Date of Birth","Gender","Role (As specified in ToR)","Qualifications (list)"]
[1]
[2]
[3]
[4]
[5]
[6]
[7]
[8]
[9]
[10]
[11]
[12]
[13]
[14]
[15]
["O","Other",null,null,"Other","Various"]
[]
[null,"Bidder signature"]
[null,"Signature"]

{"sheet":"B2 Past Experience","index":1,"n_rows":52,"n_cols":6,"rows_kept":52,"merged":[[0,0,0,5],[1,0,1,2],[1,3,1,5],[50,3,54,5],[51,1,54,1]]}
["Annexure B2: Summary of past experience of team members"]
["Bidder Name:",null,null,"Bid Ref:  DPME 03/2023-24"]
["Name of team member","Projects","Client name (attach details of contact persons)","Project Start","Project end","Value"]
{"$rows_empty":47}
[null,"Bidder signature",null,"Attach verifiable / contactable references to bid"]
[null,"vhjhh"]

{"sheet":"B3 Deliverables ","index":2,"n_rows":32,"n_cols":7,"rows_kept":32,"merged":[[0,0,0,5],[1,0,1,3],[1,4,1,5],[26,1,29,1],[31,1,35,5]]}
["Annexure B3: High level project plan - Allocation of time to team members"]
["Bidder Name: ",{"$nulls":3},"Bid Ref:  DPME 03/2023-24"]
["#","Deliverable / Activities description","Person Days","Start","End","Duration (Days)","Staff Cost \n(Incl. VAT)"]
[1,{"$nulls":5},0]
[2,{"$nulls":5},{"$f":"SUM(F5)","v":0}]
[3,{"$nulls":5},0]
[4,{"$nulls":5},0]
[5,{"$nulls":5},0]
[6,{"$nulls":5},0]
[7,{"$nulls":5},0]
[8,{"$nulls":5},0]
[9,{"$nulls":5},0]
[10,{"$nulls":5},0]
[11,{"$nulls":5},0]
[12,{"$nulls":5},0]
[13,{"$nulls":5},0]
[14,{"$nulls":5},0]
[15,{"$nulls":5},0]
[16,{"$nulls":5},0]
[17,{"$nulls":5},0]
[18,{"$nulls":5},0]
[19,{"$nulls":5},0]
[20,{"$nulls":5},0]
[null,null,{"$f":"SUM(C4:C23)","v":0},null,null,{"$f":"SUM(F4:F23)","v":0},{"$f":"SUM(G4:G23)","v":0}]
[]
[null,"Bidder signature",null,"Start",{"$f":"MIN(D4:D23)","v":"00:00:00"}]
[null,"Signature",null,"End",{"$f":"MAX(E4:E23)","v":"00:00:00"}]
[{"$nulls":3},"Duration",{"$f":"IF(E27-E26<0,0,E27-E26)","v":0}]
[]
[]
[]
[null,"The start date for bid purposes is the expected date of award as indicated by DPME. \n The start date for contract management purposes will be the actual date of award of the bid.  "]

{"sheet":"B4 Pricing  ","index":3,"n_rows":34,"n_cols":3,"rows_kept":34,"merged":[[0,0,0,2],[1,0,1,2],[2,0,2,2],[5,0,5,1],[13,0,13,1],[30,0,30,1],[33,2,36,2]]}
["Annexure B4: Costing of Proposal"]
["Bidder Name: "]
["Bid Ref: DPME 03/2023-24"]
["#","Description:","R (Incl. VAT)"]
[]
["PART 1: COSTING OF SERVICES",null,{"$f":"SUM(C7:C12)","v":0}]
[1,"Fully inclusive resource cost for all deliverables (B3)",{"$f":"'B3 Deliverables '!G24","v":0}]
[2,"Travel and subsistence cost",0]
[3,"Printing / stationery cost",0]
[4,"Communication cost"]
[5,"Other",0]
[6,"Other"]
[]
["PART 2: COSTING OF GOODS (Leave blank if not required)",null,{"$f":"SUM(C15:C29)","v":0}]
[1]
[2]
[3,null,0]
[4]
[5]
[6]
[7]
[8]
[9]
[10]
[11]
[12]
[13]
[14]
[15]
[]
["TOTAL BID PRICE (Part 1 + Part 2) incl. VAT\n1. This is the total price required to produce and deliver all goods / services included in the ToR.\n2. Please ensure that this price matches the price indicated on SBD 1.\n3. This price will be used for PPPFA comparison purposes.\n",null,{"$f":"C6+C14","v":0}]
[null,"1. This is the total price required to produce and deliver all goods / services included in the ToR.\n2. Please ensure that this price matches the price indicated on SBD 1.\n3. This price will be used for comparison purposes."]
[null,null,"Bidder signature"]
[null,null,"Signature"]